bitfinex/quotes_ETHUSD_20260130
["timestamp","ask_amount","ask_price","bid_price","bid_amount"]
[1769741166758,13.8297488,2741.4,2739.9,0.002]
[1769741166934,13.8297488,2741.2,2740.0,0.91239352]
[1769741167134,0.764,2741.1,2740.1,0.91235501]
[1769741167454,14.74182468,2741.0,2739.9,0.002]
[1769741167658,14.74182468,2741.0,2740.1,0.002]
[1769741168567,14.74182468,2741.0,2739.9,0.002]
[1769741168764,1.91541146,2740.9,2739.9,0.002]
[1769741168970,1.91541146,2740.9,2739.5,0.91057528]
[1769741169180,1.91541146,2740.9,2739.5,0.90857528]
[1769741169373,15.74516026,2740.9,2739.5,0.90657528]
[1769741169670,0.91217572,2740.7,2739.1,3.64878718]
[1769741169842,0.91217572,2740.7,2739.1,3.64678718]
[1769741170177,14.74192452,2740.7,2739.1,3.64278718]
[1769741170666,14.74192452,2740.7,2739.1,0.91270855]
[1769741170869,14.74192452,2740.7,2738.9,1.1731588]
[1769741170870,13.8297488,2740.4,2738.9,1.1731588]
[1769741171038,13.8297488,2740.4,2738.9,1.17314411]
[1769741171365,13.8297488,2740.4,2738.9,0.26038636]
[1769741171875,13.8297488,2740.2,2738.9,0.26038636]
[1769741172572,0.92690342,2740.3,2738.8,0.002]
[1769741172573,13.8297488,2740.0,2738.8,0.002]
[1769741172776,0.764,2739.9,2738.8,0.002]
[1769741172938,0.764,2739.8,2738.9,0.91277005]
[1769741173578,0.764,2739.8,2738.8,0.002]
[1769741173782,0.91250866,2739.7,2738.8,0.002]
[1769741174081,1.91562921,2739.6,2738.8,0.002]
[1769741175337,15.74537801,2739.6,2738.8,0.002]
[1769741175875,4.41403467,2739.8,2738.8,0.002]
[1769741175876,0.91249748,2739.8,2738.8,0.002]
[1769741176042,0.764,2739.7,2738.8,0.002]
[1769741176440,0.1024,2741.3,2738.8,0.002]
[1769741176441,2.0056351,2740.6,2738.8,13.70409434]
[1769741176646,0.764,2740.0,2738.8,13.70409434]
[1769741176890,0.764,2740.0,2739.0,13.70209434]
[1769741177778,0.764,2740.4,2739.2,13.70209434]
[1769741178278,0.764,2740.4,2739.1,4.72270855]
[1769741178580,0.764,2740.4,2737.6,13.70409434]
[1769741178581,13.8297488,2739.4,2737.6,13.70409434]
[1769741178872,13.84434335,2739.8,2737.9,13.70209434]
[1769741179080,0.764,2739.7,2737.9,13.70209434]
[1769741179243,13.84434335,2739.6,2737.7,15.98567713]
[1769741179445,0.764,2739.5,2737.8,15.30086205]
[1769741179649,0.764,2739.4,2737.8,15.30086205]
[1769741179880,0.91240875,2740.0,2738.0,13.70209434]
[1769741180077,0.764,2739.9,2739.0,0.002]
[1769741180246,0.77859455,2739.9,2739.0,0.002]
[1769741180987,14.60834335,2739.9,2739.0,0.002]
[1769741181156,0.01459455,2739.7,2738.8,0.002]
[1769741181579,1.93627521,2739.8,2738.8,0.002]
[1769741181950,13.8297488,2739.5,2738.8,0.002]
[1769741182350,0.91254197,2739.6,2738.8,0.002]
[1769741182852,14.74229077,2739.6,2738.0,0.91305532]
[1769741183052,14.74229077,2739.6,2738.0,0.91307438]
[1769741183253,14.74229077,2739.6,2738.0,3.65218263]
[1769741183455,14.74229077,2739.6,2737.7,13.70409434]
[1769741183456,0.91254197,2739.6,2738.4,14.6150101]
[1769741183681,0.765,2739.5,2738.4,14.6150101]
[1769741183865,1.6775795,2739.5,2738.4,14.6150101]
[1769741184687,1.6775795,2739.5,2738.1,0.36521826]
[1769741184888,0.765,2739.4,2738.3,0.91295312]
[1769741185194,0.765,2739.4,2738.2,13.70209434]
[1769741185195,1.29777499,2739.4,2738.4,1.46150475]
[1769741185398,1.29777499,2739.4,2738.2,0.91298749]
[1769741185761,1.29777499,2739.4,2738.1,1.27824365]
[1769741186197,13.6945249,2739.3,2737.8,0.91311467]
[1769741186360,13.6945249,2739.3,2738.1,0.91304049]
[1769741186562,0.765,2739.2,2738.1,14.47613483]
[1769741186855,0.91264191,2739.3,2738.1,14.47613483]
[1769741187058,0.765,2739.2,2738.2,1.81429019]
[1769741187484,12.78188299,2739.7,2738.2,15.39197908]
[1769741187485,0.91255766,2739.6,2738.2,15.39197908]
[1769741187675,0.765,2739.2,2738.2,1.81429019]
[1769741187881,0.765,2739.2,2737.9,0.91308774]
[1769741188063,0.91270855,2739.1,2737.9,0.91308774]
[1769741188461,0.765,2739.0,2737.9,14.47618208]
[1769741188662,0.765,2739.0,2737.9,0.91308774]
[1769741188990,0.765,2739.0,2737.9,0.45677649]
[1769741189390,0.765,2739.0,2737.8,0.91313345]
[1769741189964,13.6945779,2739.2,2737.8,0.91313345]
[1769741189965,0.91269491,2739.2,2737.8,0.91313345]
[1769741190190,1.67777835,2738.9,2737.8,13.56309434]
[1769741190395,1.67777835,2738.9,2737.7,3.65467562]
[1769741190396,1.67777835,2738.9,2737.7,0.002]
[1769741190603,0.53287541,2738.8,2737.7,0.45901259]
[1769741190803,0.53287541,2738.8,2737.7,0.002]
[1769741191427,0.765,2738.7,2737.7,0.002]
[1769741192117,0.91287519,2738.6,2737.9,0.002]
[1769741192610,13.69475818,2738.6,2737.9,0.002]
[1769741192809,1.81111716,2738.5,2737.9,0.002]
[1769741193391,0.91287519,2738.6,2737.9,0.002]
[1769741194714,0.91286322,2738.7,2737.9,0.002]
[1769741194923,0.91267523,2739.2,2737.9,13.08275209]
[1769741195077,0.001,2739.4,2737.9,13.08275209]
[1769741195397,0.001,2739.4,2738.1,13.08075209]
[1769741196114,0.91361615,2739.4,2738.1,13.08075209]
[1769741196683,0.91361615,2739.4,2738.2,13.99376063]
[1769741197620,14.26177226,2739.4,2738.1,0.9130228]
[1769741197938,0.01459455,2739.2,2738.1,0.9130228]
[1769741198125,0.001,2739.4,2738.1,13.99377489]
[1769741200721,13.33356156,2739.3,2737.9,0.002]
[1769741200894,0.001,2739.4,2737.9,13.08275209]
[1769741201217,0.001,2739.4,2738.0,14.48034149]
[1769741203130,0.001,2739.4,2738.1,0.91304189]
[1769741203131,13.33456156,2739.4,2738.1,0.91304189]
[1769741203628,0.001,2739.4,2738.1,0.91304189]
[1769741203792,0.001,2739.4,2738.1,13.99379398]
[1769741203998,0.91954071,2739.4,2738.2,1.90455509]
[1769741204523,0.001,2739.2,2738.2,1.90655509]
[1769741205131,0.001,2739.2,2738.3,0.9129752]
[1769741205424,13.33456156,2739.2,2738.2,0.002]
[1769741205727,13.33356156,2739.1,2738.2,0.002]
[1769741205908,2.66681231,2739.0,2738.2,0.002]
[1769741206623,2.66681231,2739.0,2738.2,0.91500276]
[1769741206828,0.001,2739.2,2738.2,13.99575485]
[1769741207831,0.001,2739.2,2738.2,0.91500276]
[1769741208327,0.001,2739.2,2738.2,13.99575485]
[1769741208527,0.001,2739.2,2738.2,0.91500276]
[1769741208731,13.33356156,2739.1,2738.2,0.002]
[1769741208909,1.33345616,2739.0,2738.2,0.002]
[1769741209621,0.9127752,2738.9,2738.2,0.002]
[1769741210015,1.33345616,2739.0,2738.2,0.002]
[1769741210218,0.91273076,2739.1,2738.2,0.002]
[1769741211396,0.001,2739.2,2738.4,13.08075209]
[1769741211632,0.001,2739.2,2738.4,14.8455149]
[1769741212704,0.001,2739.2,2738.3,0.9129752]
[1769741213520,0.001,2739.2,2738.2,13.08275209]
[1769741214150,0.001,2739.4,2738.3,16.13075209]
[1769741214642,0.001,2739.4,2738.5,13.08075209]
[1769741214930,0.001,2739.4,2738.7,13.08075209]
[1769741215714,0.001,2739.4,2738.8,0.91280852]
[1769741216437,0.91224229,2740.6,2738.8,14.76419976]
[1769741216631,0.73438911,2740.6,2738.9,13.85139124]
[1769741216838,1.47608323,2740.5,2739.1,13.85139124]
[1769741217015,0.73438911,2740.6,2739.1,13.85139124]
[1769741217211,0.73438911,2740.6,2739.0,1.47641998]
[1769741217212,13.84858996,2740.4,2739.0,1.47641998]
[1769741217537,14.58297907,2740.6,2738.8,14.76419976]
[1769741217737,13.84858996,2740.3,2738.8,0.91280852]
[1769741219851,0.91234216,2740.2,2738.8,13.85139124]
[1769741220411,14.76093212,2740.2,2738.7,17.50262535]
[1769741222146,14.76093212,2740.2,2738.8,3.05]
[1769741222344,1.84248561,2740.1,2738.9,2.05526253]
[1769741222546,13.84858996,2739.8,2738.5,3.052]
[1769741222750,13.84858996,2739.4,2738.5,0.002]
[1769741224524,0.91267523,2739.2,2738.5,0.002]
[1769741225232,2.83035924,2739.2,2738.5,0.002]
[1769741225429,0.765,2739.3,2738.5,0.002]
[1769741225662,1.67764336,2739.3,2738.5,0.002]
[1769741226471,13.84858996,2739.0,2738.0,0.002]
[1769741226618,13.84858996,2738.8,2738.0,0.002]
[1769741227546,13.86318451,2738.8,2737.7,0.002]
[1769741228130,13.84858996,2738.5,2737.4,0.002]
[1769741228528,14.76153182,2738.4,2737.4,0.002]
[1769741228731,16.70960214,2738.3,2737.4,0.002]
[1769741228956,13.86318451,2738.2,2737.2,0.62973533]
[1769741229259,13.86318451,2738.0,2736.9,0.002]
[1769741230453,2.86101218,2738.3,2737.2,0.91332994]
[1769741230656,13.86318451,2738.8,2737.3,0.45668126]
[1769741230657,0.765,2738.2,2737.3,0.45668126]
[1769741232164,14.61358996,2738.2,2737.3,0.45668126]
[1769741232359,13.84858996,2738.0,2736.9,0.002]
[1769741232530,0.91310858,2737.9,2736.9,0.002]
[1769741232730,14.77629309,2737.9,2736.9,0.002]
[1769741233049,1.84287274,2737.8,2736.9,0.002]
[1769741233571,0.765,2737.7,2736.9,0.002]
[1769741234967,0.765,2737.6,2736.9,0.002]
[1769741235127,0.91310858,2737.9,2736.9,0.002]
[1769741235334,0.765,2737.8,2736.9,0.002]
[1769741236382,0.01459455,2738.4,2736.9,13.85339124]
[1769741236534,0.765,2738.3,2737.1,13.85139124]
[1769741237040,1.67799738,2738.3,2737.2,0.9133421]
[1769741238167,1.69259193,2738.3,2737.2,0.9133421]
[1769741238334,1.69259193,2738.3,2737.3,14.5]
[1769741238533,0.5344388,2738.2,2737.2,0.9133421]
[1769741238735,0.01459455,2737.9,2736.9,0.002]
[1769741239036,0.91314193,2737.8,2736.9,0.002]
[1769741239440,0.91312481,2737.9,2736.9,0.002]
[1769741239645,2.75599447,2737.9,2736.9,3.29407552]
[1769741239864,2.77058902,2737.9,2736.9,3.29407552]
[1769741240066,2.77058902,2737.9,2736.9,0.002]
[1769741241035,2.77058902,2737.9,2737.1,0.002]
[1769741241366,1.84286966,2737.9,2737.1,0.002]
[1769741241667,0.765,2737.8,2737.1,13.85339124]
[1769741241870,0.765,2737.8,2737.1,0.002]
[1769741242768,0.91287519,2738.6,2737.1,13.85339124]
[1769741242936,0.765,2738.5,2737.1,16.90339124]
[1769741243136,0.765,2738.5,2737.3,0.91330873]
[1769741243137,0.91294186,2738.4,2737.3,0.91330873]
[1769741243464,0.01459455,2738.2,2737.2,1.69033912]
[1769741243642,0.765,2738.1,2737.2,14.76472233]
[1769741243962,0.92745671,2738.7,2737.3,16.90139124]
[1769741244134,0.765,2738.3,2737.3,16.90139124]
[1769741244336,14.61358996,2738.3,2737.3,3.05]
[1769741244534,1.461359,2738.2,2737.3,3.05]
[1769741245266,0.91304189,2738.1,2737.3,3.05]
[1769741245436,0.91304189,2738.1,2737.1,0.002]
[1769741245766,0.91304189,2738.1,2737.1,0.91537137]
[1769741245978,0.91304189,2738.1,2737.1,0.002]
[1769741246292,0.60410873,2738.0,2737.1,0.002]
[1769741246431,17.24619735,2738.7,2737.3,0.91330704]
[1769741246637,0.91287519,2738.6,2737.3,14.53718658]
[1769741246982,0.765,2738.5,2737.3,14.53718658]
[1769741247134,13.3896028,2738.3,2737.1,0.91535433]
[1769741247333,0.91300854,2738.2,2737.2,0.91332945]
[1769741247578,0.91299201,2738.3,2737.2,14.53720899]
[1769741247762,3.65133259,2738.8,2737.3,13.62387954]
[1769741248062,0.765,2738.6,2737.3,13.62387954]
[1769741248487,14.1546028,2738.6,2737.2,3.96332945]
[1769741248643,13.3896028,2737.7,2737.1,0.002]
[1769741248842,0.765,2737.6,2737.1,0.002]
[1769741249382,0.913242,2737.5,2737.1,0.002]
[1769741249741,0.913242,2737.5,2736.9,0.002]
[1769741249944,1.44634988,2737.5,2736.9,0.002]
[1769741250858,0.53310788,2737.5,2736.9,0.002]
[1769741251056,1.67823146,2737.6,2736.9,0.002]
[1769741251796,15.06783426,2737.6,2736.9,0.002]
[1769741252675,3.65273701,2737.7,2736.9,0.002]
[1769741252676,0.91317932,2737.7,2736.9,0.002]
[1769741253163,0.765,2737.6,2737.1,0.002]
[1769741253363,0.766,2737.6,2737.1,0.002]
[1769741253673,0.913242,2737.5,2736.9,0.002]
[1769741253876,0.533221,2737.4,2736.9,0.002]
[1769741254076,0.765,2737.3,2736.9,0.002]
[1769741256253,1.44650771,2737.4,2736.9,0.002]
[1769741256453,0.765,2737.3,2736.9,0.002]
[1769741258383,1.6783366,2737.3,2736.6,0.002]
[1769741258593,1.6783366,2737.3,2736.3,0.91561231]
[1769741258594,13.88816874,2737.2,2736.3,0.002]
[1769741260003,13.88816874,2737.2,2735.8,0.002]
[1769741260004,0.01459455,2736.7,2735.8,0.002]
[1769741260217,0.58793122,2737.2,2735.8,0.002]
[1769741260218,13.87357419,2737.2,2735.8,0.002]
[1769741260482,0.765,2736.6,2735.8,12.87990289]
[1769741260994,3.65350569,2737.1,2735.8,12.87990289]
[1769741261282,0.765,2736.5,2735.8,12.87990289]
[1769741262380,0.91337547,2737.1,2735.9,0.91377608]
[1769741262683,0.765,2737.0,2736.0,1.74488423]
[1769741262853,3.842,2737.5,2736.0,14.62278712]
[1769741262854,0.913242,2737.5,2736.0,14.62278712]
[1769741263059,0.765,2737.4,2736.0,14.62278712]
[1769741263491,0.765,2737.4,2736.2,12.87790289]
[1769741263668,1.2982126,2737.4,2736.3,15.61569318]
[1769741264585,1.44651897,2737.4,2736.4,0.91360912]
[1769741264888,0.765,2737.3,2736.4,13.79151201]
[1769741265055,0.765,2737.3,2736.4,16.84151201]
[1769741265263,0.001,2737.1,2736.4,16.84151201]
[1769741265462,0.001,2737.1,2736.5,0.39856585]
[1769741265957,0.765,2737.0,2736.5,13.27646874]
[1769741266158,0.001,2737.1,2736.5,13.27646874]
[1769741266387,0.766,2737.1,2736.5,13.27646874]
[1769741266582,0.766,2737.1,2736.5,0.39856585]
[1769741266793,0.766,2737.1,2736.5,0.91357262]
[1769741267902,0.001,2737.1,2736.1,3.05]
[1769741268069,0.765,2737.0,2736.5,0.91357051]
[1769741268990,0.765,2737.0,2736.5,0.45681149]
[1769741269155,0.765,2737.0,2736.2,13.79157879]
[1769741269356,0.001,2737.1,2736.2,13.79157879]
[1769741269562,0.765,2737.3,2736.3,12.87790289]
[1769741269791,0.765,2737.3,2736.2,3.9636759]
[1769741269792,0.765,2737.3,2736.5,12.87790289]
[1769741271095,0.001,2737.6,2736.7,12.87790289]
[1769741271297,0.765,2737.9,2736.9,12.87790289]
[1769741271591,0.765,2737.9,2737.1,12.87790289]
[1769741272374,0.765,2737.9,2737.0,16.09279029]
[1769741273064,0.765,2737.9,2737.1,0.91337547]
[1769741277191,0.765,2737.9,2737.0,1.59279029]
[1769741277192,15.48904698,2737.9,2737.0,1.59279029]
[1769741277494,0.001,2737.7,2736.9,3.05]
[1769741279193,0.765,2737.6,2736.9,3.96343982]
[1769741279898,0.001,2737.7,2736.9,3.96343982]
[1769741280200,0.765,2737.5,2736.9,3.96343982]
[1769741280802,0.765,2737.5,2736.9,0.91343982]
[1769741280961,0.001,2737.7,2737.0,14.66269533]
[1769741281171,0.91294319,2738.4,2737.2,13.90096357]
[1769741281387,0.765,2738.3,2737.2,16.95096357]
[1769741282103,14.57593683,2738.3,2737.2,3.05]
[1769741282406,1.45759368,2738.2,2737.2,3.88786091]
[1769741282611,0.765,2738.3,2737.2,3.88786091]
[1769741282989,14.57593683,2738.3,2737.2,3.05]
[1769741283192,13.81093683,2737.6,2736.4,0.002]
[1769741283493,13.82553138,2737.6,2736.4,0.002]
[1769741284607,13.81093683,2737.2,2736.4,0.002]
[1769741284805,2.53029368,2737.1,2736.4,0.002]
[1769741285308,0.91340884,2737.0,2736.4,0.002]
[1769741287507,0.765,2736.9,2736.4,0.002]
[1769741288287,0.91340884,2737.0,2736.4,0.002]
[1769741288572,14.72401206,2738.0,2736.4,13.90296357]
[1769741288778,0.9129752,2738.3,2736.6,13.90096357]
[1769741288995,0.765,2738.2,2736.6,13.90096357]
[1769741289279,0.761,2738.2,2736.8,13.90096357]
[1769741289499,0.763,2738.1,2737.0,13.90096357]
[1769741289676,0.761,2738.1,2737.0,13.90096357]
[1769741289876,0.759,2738.1,2737.0,13.90096357]
[1769741290076,0.765,2738.0,2737.0,13.90096357]
[1769741290278,0.763,2738.0,2737.1,15.52141378]
[1769741290703,0.75276,2738.0,2737.1,15.52141378]
[1769741291405,0.75276,2738.0,2737.2,14.81430567]
[1769741291830,0.765,2738.3,2737.2,14.81430567]
[1769741292499,0.92736975,2738.9,2737.2,14.81430567]
[1769741292500,0.765,2738.2,2737.2,14.81430567]
[1769741292700,0.765,2738.2,2737.3,0.48239744]
[1769741293076,0.765,2738.2,2737.3,14.38336101]
[1769741294003,0.765,2738.2,2737.4,0.91327537]
[1769741294604,0.91292937,2738.5,2737.4,0.91327537]
[1769741294809,0.765,2738.4,2737.4,0.91327537]
[1769741295013,0.765,2738.4,2737.5,1.39029636]
[1769741296115,0.765,2738.4,2737.6,0.91320864]
[1769741296861,13.81093683,2738.3,2737.3,1.39569537]
[1769741297033,13.81093683,2738.3,2737.2,0.91331972]
[1769741297207,13.81093683,2738.3,2737.2,0.91332269]
[1769741297629,13.81093683,2738.3,2737.3,0.91330136]
[1769741297845,1.67795063,2738.4,2737.4,0.91326496]
[1769741297846,1.54888875,2738.2,2737.4,0.91326496]
[1769741297991,0.765,2738.1,2737.5,0.91324105]
[1769741298192,15.48899501,2738.1,2737.1,0.9133426]
[1769741298408,1.91411626,2738.0,2737.1,0.9133426]
[1769741299003,15.48899501,2738.1,2736.9,3.65376088]
[1769741299004,0.91296215,2738.4,2737.4,13.90096357]
[1769741299208,0.765,2738.3,2737.2,0.91332177]
[1769741299404,14.57593683,2738.3,2737.3,0.91330567]
[1769741299726,1.5488899,2738.2,2737.0,0.91338295]
[1769741299933,1.5488899,2738.2,2737.1,0.91336372]
[1769741299934,15.35982673,2738.2,2737.1,0.91336372]
[1769741300449,0.91304189,2738.1,2737.0,0.91340884]
[1769741301217,0.91304189,2738.1,2736.9,17.55468017]
[1769741301218,14.72497872,2738.1,2736.9,0.91342325]
[1769741301427,15.80354045,2738.0,2736.9,0.91342325]
[1769741302530,0.91310858,2737.9,2736.7,14.81447254]
[1769741303532,0.765,2737.8,2736.7,14.81447254]
[1769741304309,0.765,2737.8,2736.8,3.05]
[1769741304638,0.765,2737.8,2736.9,0.91344221]
[1769741304818,0.765,2737.8,2737.0,2.15181746]
[1769741305133,0.765,2737.8,2737.0,5.20181746]
[1769741305430,0.91308716,2738.0,2737.0,5.20181746]
[1769741305741,0.765,2737.9,2737.1,13.92165877]
[1769741306317,0.001,2738.1,2737.1,13.92165877]
[1769741306514,13.68948842,2738.1,2737.2,1.60734762]
[1769741306714,13.68948842,2738.1,2737.1,0.91335246]
[1769741306910,13.68948842,2738.1,2737.2,0.91333772]
[1769741307240,13.68948842,2738.1,2737.1,0.91335376]
[1769741307544,1.81065235,2738.0,2737.2,0.91333893]
[1769741307908,1.81065235,2738.0,2737.0,0.91338537]
[1769741309037,0.91310858,2737.9,2736.9,0.91344221]
[1769741309834,13.68854562,2737.9,2736.8,3.05]
[1769741310141,1.9151594,2737.8,2736.7,0.9134782]
[1769741310345,1.9151594,2737.8,2736.6,0.002]
[1769741310346,14.69059644,2737.8,2736.6,0.002]
[1769741310543,14.70519099,2737.8,2736.6,0.002]
[1769741310717,12.79003159,2737.6,2736.6,0.002]
[1769741310907,12.77543704,2737.4,2736.6,0.002]
[1769741311109,0.91330873,2737.3,2736.6,0.002]
[1769741311825,13.68874577,2737.3,2736.6,0.002]
[1769741312617,0.91329418,2737.4,2736.6,0.002]
[1769741312924,0.765,2737.2,2736.8,0.002]
[1769741313111,0.91337547,2737.1,2736.8,0.002]
[1769741313450,0.53317198,2737.1,2736.6,0.002]
[1769741313670,0.91310858,2737.9,2736.6,13.92365877]
[1769741314145,0.765,2737.8,2736.6,13.92365877]
[1769741314728,14.64494229,2737.8,2736.6,0.002]
[1769741314929,13.87994229,2737.5,2736.6,0.002]
[1769741315444,1.67827537,2737.4,2736.6,0.002]
[1769741315656,2.21141306,2737.4,2736.6,0.002]
[1769741318526,0.765,2737.3,2736.6,0.002]
[1769741318731,0.765,2737.2,2736.6,0.002]
[1769741318949,0.765,2737.2,2736.7,3.05]
[1769741321460,0.765,2737.2,2736.7,3.02889216]
[1769741322562,2.32082584,2737.2,2736.7,3.02889216]
[1769741323359,0.765,2737.2,2736.7,3.94239648]
[1769741323658,0.765,2737.2,2736.7,3.02889216]
[1769741323861,0.765,2737.2,2736.1,0.002]
[1769741323862,15.55828536,2737.2,2736.1,0.002]
[1769741324033,15.55828536,2737.2,2736.2,0.004]
[1769741324228,15.80110767,2737.1,2736.2,0.004]
[1769741324947,15.80110767,2737.1,2736.8,0.002]
[1769741325137,15.80110767,2737.1,2736.2,0.004]
[1769741325538,14.79335113,2737.0,2736.5,0.002]
[1769741325858,13.87994229,2736.8,2736.2,0.004]
[1769741326363,13.87994229,2736.8,2736.1,0.002]
[1769741326664,13.87994229,2736.8,2736.1,0.006]
[1769741327660,0.91350897,2736.7,2736.1,0.006]
[1769741329258,14.79345126,2736.7,2736.1,0.006]
[1769741329461,1.84473576,2736.6,2736.1,0.006]
[1769741329665,0.91357573,2736.5,2736.0,0.002]
[1769741329869,0.91356389,2736.6,2736.0,0.002]
[1769741330405,0.765,2736.7,2736.1,0.91370515]
[1769741330991,0.765,2736.7,2736.0,0.91571923]
[1769741331166,0.765,2736.7,2736.1,0.36570702]
[1769741331792,0.765,2736.7,2736.1,1.27941629]
[1769741332205,14.79418429,2737.6,2736.1,14.56986238]
[1769741332366,14.79418429,2737.6,2736.1,14.20415536]
[1769741332367,1.678242,2737.5,2736.1,14.20415536]
[1769741332566,15.55818429,2737.5,2736.1,14.20415536]
[1769741332867,15.81573939,2737.4,2736.2,1.78611233]
[1769741333066,15.81573939,2737.4,2736.0,0.002]
[1769741333067,0.01459455,2736.9,2736.0,0.002]
[1769741333268,13.87994229,2736.8,2736.0,0.002]
[1769741333576,13.89453684,2737.1,2736.0,0.002]
[1769741333761,15.26939597,2737.0,2736.0,0.002]
[1769741334176,0.91344221,2736.9,2736.0,0.002]
[1769741335474,0.92803676,2736.9,2736.0,0.002]
[1769741335671,0.92112577,2736.9,2736.0,0.002]
[1769741335897,12.62613258,2736.8,2736.0,0.002]
[1769741336102,0.92112577,2736.9,2736.0,0.002]
[1769741336103,13.98085842,2736.7,2736.0,0.002]
[1769741336476,0.91354235,2736.6,2736.0,0.002]
[1769741336705,0.765,2736.5,2736.0,0.002]
[1769741336904,0.765,2736.5,2735.8,0.002]
[1769741337112,0.765,2736.5,2735.5,0.002]
[1769741337317,0.765,2736.5,2735.4,13.30457382]
[1769741337318,2.56088443,2736.5,2735.6,1.33065738]
[1769741337515,2.56088443,2736.5,2735.6,1.32865738]
[1769741337704,2.56088443,2736.5,2735.6,1.32665738]
[1769741337905,2.56088443,2736.5,2735.6,1.32465738]
[1769741338115,2.56088443,2736.5,2735.6,1.32265738]
[1769741338324,0.34754268,2736.4,2735.3,0.002]
[1769741338526,0.34754268,2736.4,2735.2,1.31935482]
[1769741338527,0.9136425,2736.3,2735.2,1.31935482]
[1769741338687,0.9136425,2736.3,2735.2,1.31735482]
[1769741338888,3.29081464,2736.3,2735.3,0.49754905]
[1769741339240,2.37717214,2736.3,2735.3,13.80212287]
[1769741339393,1.67862585,2736.4,2735.3,13.80212287]
[1769741340823,12.64072713,2736.0,2735.2,0.40334506]
[1769741340990,12.62613258,2736.0,2735.2,0.40334506]
[1769741341316,0.91362585,2736.4,2735.2,14.62191729]
[1769741341614,0.766,2736.3,2735.2,14.62191729]
[1769741341824,1.30085309,2736.3,2735.3,1.46239173]
[1769741342395,1.30085309,2736.3,2735.3,2.37636514]
[1769741342593,1.30085309,2736.3,2735.3,2.37636455]
[1769741342916,0.9136759,2736.2,2735.3,1.46239173]
[1769741343090,0.58692326,2736.1,2735.2,14.62191672]
[1769741343292,0.58692326,2736.1,2735.2,14.62191017]
[1769741343590,12.64072713,2736.0,2735.2,0.40334506]
[1769741343804,12.64072713,2735.9,2735.2,0.40334506]
[1769741344100,12.64072713,2735.7,2735.1,0.002]
[1769741344498,12.64072713,2735.7,2734.7,0.002]
[1769741344826,0.01459455,2734.7,2733.5,0.91457117]
[1769741345133,0.01459455,2734.7,2733.4,13.30457382]
[1769741345134,1.68021048,2734.6,2733.4,14.21916257]
[1769741345291,1.68021048,2734.6,2733.4,14.16916257]
[1769741345489,1.69480503,2734.6,2733.4,14.16918217]
[1769741345691,1.69480503,2734.6,2733.4,14.16918414]
[1769741345894,0.66171792,2734.5,2733.5,1.42828716]
[1769741346103,0.66171792,2734.5,2733.4,0.91461032]
[1769741346924,0.91427735,2734.4,2733.4,0.91461032]
[1769741347101,0.9288719,2734.4,2733.3,13.41826129]
[1769741347306,13.55500448,2734.4,2733.3,0.11368747]
[1769741347509,12.62613258,2734.0,2733.3,0.11368747]
[1769741347835,0.766,2734.1,2733.3,0.11368747]
[1769741347991,0.01459455,2734.0,2733.3,0.11368747]
[1769741348314,0.01459455,2734.1,2733.3,0.11368747]
[1769741348524,1.442811,2734.1,2733.3,0.11368747]
[1769741348707,0.78059455,2734.2,2733.3,0.11368747]
[1769741348906,0.91437767,2734.1,2733.3,0.11368747]
[1769741349305,0.91437767,2734.1,2732.7,13.30457382]
[1769741349306,0.01459455,2733.8,2732.7,0.91482628]
[1769741349618,0.01459455,2733.6,2732.5,0.91489168]
[1769741349828,0.01459455,2733.6,2732.5,2.70282944]
[1769741350033,0.01459455,2733.6,2732.5,0.914907]
[1769741350034,0.01459455,2733.4,2732.5,0.914907]
[1769741350340,0.01459455,2733.4,2732.6,0.91487825]
[1769741350541,0.01459455,2733.4,2732.2,0.91500321]
[1769741350695,0.01459455,2733.4,2732.4,0.91492907]
[1769741350892,0.01459455,2733.4,2732.4,0.91494009]
[1769741351233,0.01459455,2734.2,2732.5,13.30457382]
[1769741351526,0.01459455,2734.4,2732.5,13.30457382]
[1769741351527,0.01459455,2734.1,2732.5,13.30457382]
[1769741351733,0.92890534,2734.3,2732.5,13.30457382]
[1769741352241,13.55503792,2734.3,2732.5,13.30457382]
[1769741352412,0.01459455,2734.1,2732.5,13.30457382]
[1769741352611,1.3715578,2734.1,2732.6,1.3762072]
[1769741352813,1.35696325,2734.1,2732.7,13.30457382]
[1769741353043,0.92890534,2734.3,2732.8,0.91481264]
[1769741353410,13.55503792,2734.3,2732.8,0.91481264]
[1769741353612,0.01459455,2733.7,2732.7,0.91483354]
[1769741353852,0.01459455,2733.7,2732.6,0.91486541]
[1769741354008,0.01459455,2733.7,2732.5,3.65960608]
[1769741354209,0.01459455,2734.9,2732.8,13.30457382]
[1769741354468,0.01459455,2734.5,2732.8,13.30457382]
[1769741354669,12.64072713,2734.3,2732.9,1.42194137]
[1769741354958,12.64072713,2734.3,2732.4,13.76207195]
[1769741354959,0.91441111,2734.0,2732.4,13.76207195]
[1769741355177,0.01459455,2733.9,2732.5,0.91491308]
[1769741355615,3.65673804,2734.7,2732.6,13.30457382]
[1769741355816,0.01459455,2734.3,2732.6,13.30457382]
[1769741356125,0.01459455,2734.3,2732.1,0.91504404]
[1769741356126,0.01459455,2732.6,2732.1,0.91504404]
[1769741356435,0.01459455,2733.5,2731.5,3.91335348]
[1769741356436,13.39213258,2734.0,2732.4,14.21950543]
[1769741356611,0.78059455,2734.3,2732.4,14.21950543]
[1769741356817,0.01459455,2733.5,2732.6,13.30457382]
[1769741357015,0.92912577,2733.7,2732.7,14.21941994]
[1769741358427,0.01459455,2733.5,2732.7,14.21941994]
[1769741359049,0.92919436,2733.5,2732.6,0.91486425]
[1769741359220,0.45873845,2733.4,2732.6,0.91486425]
[1769741359419,0.01459455,2733.5,2732.6,0.91486425]
[1769741359642,0.92917811,2733.5,2732.6,0.91486425]
[1769741361045,0.01459455,2734.1,2732.5,2.70283759]
[1769741361235,0.01459455,2733.5,2732.5,14.21947278]
[1769741362050,0.91441111,2734.0,2732.8,13.30657382]
[1769741362248,0.01459455,2733.9,2732.8,13.30657382]